bitfinex/quotes_ETHUSD_20250406
["timestamp","ask_amount","ask_price","bid_price","bid_amount"]
[1743950758234,0.05,1760.9,1760.8,11.78766283]
[1743950764414,0.05,1760.9,1760.8,11.78366283]
[1743950768340,0.05,1760.9,1760.8,52.65466283]
[1743950770444,3.0,1761.3,1760.9,3.97515]
[1743950770648,0.8198,1761.6,1761.1,0.7765]
[1743950770853,0.8198,1761.6,1761.2,10.03419494]
[1743950771008,3.8198,1761.6,1761.2,9.97739]
[1743950771345,3.97922229,1761.5,1761.2,13.95177]
[1743950771546,0.8198,1761.6,1761.2,9.97738]
[1743950772047,0.8198,1761.6,1761.3,3.97432]
[1743950772048,3.8198,1761.6,1761.3,3.97432]
[1743950773052,0.8198,1761.6,1761.3,7.9485]
[1743950773250,0.8198,1761.6,1761.4,3.97407]
[1743950773542,4.02318,1761.9,1761.8,3.9732]
[1743950773543,0.05,1761.9,1761.8,3.9732]
[1743950773726,0.05,1761.9,1761.8,10.03094895]
[1743950773923,0.05,1761.9,1761.8,9.9742]
[1743950774127,0.05,1761.9,1761.8,10.7507]
[1743950776454,0.05,1761.9,1761.8,6.0]
[1743950777254,0.05,1761.9,1761.8,6.05675041]
[1743950777627,0.05,1761.9,1761.8,6.0]
[1743950778555,0.05,1761.9,1761.8,10.7852]
[1743950778759,0.05,1761.9,1761.8,14.82117181]
[1743950779074,0.05,1761.9,1761.8,14.76442229]
[1743950779438,0.05,1761.9,1761.8,10.7852]
[1743950779819,0.05,1761.9,1761.8,18.37115849]
[1743950780049,0.05,1761.9,1761.8,18.31442229]
[1743950780951,0.05,1761.9,1761.8,10.7852]
[1743950781152,0.05,1761.9,1761.8,4.7852]
[1743950781354,0.05,1761.9,1761.8,10.83894235]
[1743950781559,0.05,1761.9,1761.7,3.97328]
[1743950781859,0.05,1761.9,1761.8,5.997]
[1743950782961,8.00234229,1761.9,1761.8,5.996]
[1743950783361,4.02922229,1761.9,1761.8,5.996]
[1743950784159,0.05,1761.9,1761.8,5.996]
[1743950784655,4.02298,1761.9,1761.8,5.996]
[1743950784855,0.05,1761.9,1761.8,5.996]
[1743950785964,4.02298,1761.9,1761.8,5.996]
[1743950786259,0.05,1761.9,1761.8,5.996]
[1743950789641,4.02298,1761.9,1761.8,5.996]
[1743950789855,0.05,1761.9,1761.8,5.996]
[1743950791554,4.02298,1761.9,1761.8,5.996]
[1743950791873,0.05,1761.9,1761.8,11.3191]
[1743950795059,0.05,1761.9,1761.8,52.1661]
[1743950802795,0.05,1761.9,1761.8,46.1701]
[1743950803090,0.05,1761.9,1761.8,52.1581]
[1743950803489,0.05,1761.9,1761.8,52.57715144]
[1743950804678,0.05,1761.9,1761.8,53.12715144]
[1743950805083,0.05,1761.9,1761.8,57.10637373]
[1743950811204,0.8297,1762.6,1762.5,3.97163]
[1743950811367,0.8297,1762.6,1762.5,10.353793]
[1743950812706,0.8271,1762.8,1762.5,14.38214951]
[1743950812870,0.05,1762.9,1762.5,14.325423]
[1743950813064,0.29408199,1763.3,1762.9,3.97073]
[1743950813266,0.29408199,1763.3,1763.2,3.97005]
[1743950813580,0.05,1763.9,1763.3,4.76402]
[1743950813766,0.05,1763.9,1763.3,4.82071118]
[1743950813969,0.05,1763.9,1763.3,4.76402]
[1743950814171,0.05,1763.9,1763.8,3.9687]
[1743950814396,0.05,1763.9,1763.8,10.7671]
[1743950814605,0.17780843,1763.9,1763.8,10.7671]
[1743950814918,0.05,1763.9,1763.8,10.7671]
[1743950815116,0.05,1763.9,1763.8,5.983]
[1743950815986,0.05,1763.9,1763.8,9.9517]
[1743950816191,0.05,1763.9,1763.8,15.35000653]
[1743950816398,0.05,1763.9,1763.8,18.29332229]
[1743950816728,0.05,1763.9,1763.8,10.7621]
[1743950816882,0.05,1763.9,1763.8,9.9497]
[1743950817288,0.05,1763.9,1763.8,10.00637679]
[1743950817609,0.05,1763.9,1763.8,9.9497]
[1743950818428,0.05,1763.9,1763.7,3.96877]
[1743950818575,0.05,1763.9,1763.8,5.981]
[1743950819014,0.05,1763.9,1763.4,1.23585433]
[1743950819213,0.05,1763.9,1763.5,9.94821]
[1743950819383,0.8093,1763.9,1763.5,3.96921]
[1743950819583,0.8093,1763.9,1763.6,9.94814]
[1743950819904,0.05,1763.9,1763.7,3.96881]
[1743950820413,0.05,1763.9,1763.8,3.9687]
[1743950821996,0.05,1763.9,1763.8,44.7787]
[1743950823708,0.05,1763.9,1763.8,40.81]
[1743950823916,0.05,1763.9,1763.8,44.7787]
[1743950824086,0.05,1763.9,1763.8,40.81]
[1743950824415,0.05,1763.9,1763.8,44.7787]
[1743950825026,0.05,1763.9,1763.8,40.81]
[1743950825717,0.05,1763.9,1763.8,46.09071254]
[1743950825877,0.05,1763.9,1763.8,44.7787]
[1743950827607,0.05,1763.9,1763.8,46.786]
[1743950827808,0.05,1763.9,1763.8,50.7547]
[1743950827995,0.05,1763.9,1763.8,46.786]
[1743950828198,0.05,1763.9,1763.8,50.7547]
[1743950832110,0.05,1763.9,1763.8,51.523]
[1743950832434,0.05,1763.9,1763.8,44.7787]
[1743950832716,0.05,1763.9,1763.8,50.7527]
[1743950832921,0.05,1763.9,1763.8,51.521]
[1743950836832,0.04381476,1764.6,1764.5,4.78742]
[1743950837038,0.04381476,1764.6,1764.5,14.7952912]
[1743950837208,0.04381476,1764.6,1764.5,14.73864229]
[1743950838402,0.04381476,1764.6,1764.5,15.28864229]
[1743950839724,0.04381476,1764.6,1764.5,14.73864229]
[1743950839925,0.04381476,1764.6,1764.5,9.93712]
[1743950840329,0.04381476,1764.6,1764.5,10.41508339]
[1743950840819,0.04381476,1764.6,1764.5,9.93712]
[1743950841603,0.85361476,1764.6,1764.5,5.97]
[1743950841830,0.85361476,1764.6,1764.4,3.96727]
[1743950842137,0.85361476,1764.6,1764.5,9.93612]
[1743950842306,0.85361476,1764.6,1764.5,9.9927838]
[1743950842829,0.04381476,1764.6,1764.5,9.9927838]
[1743950843229,0.04381476,1764.6,1764.5,10.75642]
[1743950843412,0.04381476,1764.6,1764.5,10.8130688]
[1743950843913,0.04381476,1764.6,1764.5,10.75642]
[1743950844311,0.04381476,1764.6,1764.5,10.81307016]
[1743950844517,0.04381476,1764.6,1764.5,10.75642]
[1743950845440,0.04381476,1764.6,1764.5,10.81307048]
[1743950845808,0.04381476,1764.6,1764.5,10.75642]
[1743950846927,0.04381476,1764.6,1764.5,3.96712]
[1743950847120,0.04381476,1764.6,1764.5,9.93412]
[1743950847515,0.04381476,1764.6,1764.5,10.70012]
[1743950847819,0.04381476,1764.6,1764.5,51.48212]
[1743950849038,0.04381476,1764.6,1764.5,54.48212]
[1743950849405,4.76e-06,1764.6,1764.5,59.01134229]
[1743950850022,4.76e-06,1764.6,1764.5,55.03212]
[1743950851240,4.76e-06,1764.6,1764.5,52.03212]
[1743950851812,4.76e-06,1764.6,1764.5,45.51512]
[1743950852021,4.76e-06,1764.6,1764.5,50.71412]
[1743950853316,4.76e-06,1764.6,1764.5,44.74912]
[1743950853520,4.76e-06,1764.6,1764.5,50.71412]
[1743950855062,4.76e-06,1764.6,1764.5,51.26412]
[1743950855559,4.76e-06,1764.6,1764.5,50.71412]
[1743950856425,4.76e-06,1764.6,1764.5,51.26412]
[1743950856947,4.76e-06,1764.6,1764.5,52.05622]
[1743950858135,4.76e-06,1764.6,1764.5,44.74912]
[1743950858334,4.76e-06,1764.6,1764.5,50.71312]
[1743950858559,4.76e-06,1764.6,1764.5,51.26312]
[1743950858769,4.76e-06,1764.6,1764.5,52.05522]
[1743950858928,4.76e-06,1764.6,1764.5,51.50522]
[1743950859668,4.76e-06,1764.6,1764.5,50.71312]
[1743950860458,4.76e-06,1764.6,1764.5,50.71212]
[1743950861046,4.76e-06,1764.6,1764.5,44.74912]
[1743950861254,0.75420476,1764.6,1764.5,50.71212]
[1743950861822,4.76e-06,1764.6,1764.5,51.50422]
[1743950862673,4.76e-06,1764.6,1764.5,50.71212]
[1743950863655,4.76e-06,1764.6,1764.5,55.05422]
[1743950865077,4.76e-06,1764.6,1764.5,59.03344229]
[1743950865292,0.05,1764.9,1764.8,12.28777229]
[1743950865293,4.76e-06,1764.9,1764.8,12.28777229]
[1743950865492,0.7592,1765.6,1765.5,3.96488]
[1743950865777,0.7592,1765.6,1765.5,50.75850811]
[1743950866070,0.7592,1765.6,1765.5,50.70188]
[1743950866378,0.005,1765.6,1765.5,50.70188]
[1743950867667,0.005,1765.6,1765.5,51.49398]
[1743950867979,0.005,1765.6,1765.5,51.91490464]
[1743950868329,0.005,1765.6,1765.5,51.12280464]
[1743950869680,1e-05,1765.6,1765.5,51.12280464]
[1743950870464,1e-05,1765.6,1765.5,54.67280464]
[1743950870935,1e-05,1765.6,1765.5,55.45040464]
[1743950871686,1e-05,1765.6,1765.5,59.42962693]
[1743950872284,1e-05,1765.6,1765.5,55.45040464]
[1743950873474,3.94721189,1766.5,1766.2,3.9632]
[1743950873680,3.94721189,1766.5,1766.3,5.958]
[1743950873842,3.94721189,1766.5,1766.3,9.92108]
[1743950874175,3.94721189,1766.5,1766.3,5.958]
[1743950875562,3.94721189,1766.5,1766.3,13.88387]
[1743950875764,0.34413326,1766.9,1766.3,13.88387]
[1743950875765,0.34413326,1766.9,1766.5,3.96263]
[1743950875965,0.05,1766.9,1766.7,3.96208]
[1743950876269,0.05,1766.9,1766.8,9.91896]
[1743950876567,0.8813,1766.9,1766.8,9.91896]
[1743950878068,0.8313,1766.8,1766.3,3.96292]
[1743950878268,0.8313,1766.7,1766.4,9.91966]
[1743950878971,0.8313,1766.7,1766.5,3.96262]
[1743950879474,0.8313,1766.7,1766.5,3.96254]
[1743950879788,0.8313,1766.7,1766.6,3.96241]
[1743950880173,0.8313,1766.7,1766.5,4.01914165]
[1743950880379,0.8313,1766.7,1766.4,9.91983]
[1743950880691,0.8313,1766.5,1766.4,5.957]
[1743950880843,0.8313,1766.5,1766.2,3.96321]
[1743950881040,0.8313,1766.5,1766.3,5.955]
[1743950881261,0.8313,1766.5,1766.1,44.71934]
[1743950881478,0.8313,1766.4,1766.2,5.955]
[1743950882071,0.8313,1766.3,1766.2,5.955]
[1743950882479,0.8313,1766.8,1766.6,3.96233]
[1743950882640,0.8313,1766.8,1766.7,6.01059144]
[1743950882845,0.8313,1766.8,1766.7,9.91618]
[1743950883669,0.8313,1767.0,1766.8,3.96196]
[1743950883871,0.8313,1767.0,1766.7,5.954]
[1743950884195,0.8313,1767.0,1766.7,9.91603]
[1743950884490,0.8313,1766.8,1766.7,5.954]
[1743950884650,0.8313,1766.8,1766.7,9.91618]
[1743950885169,0.8313,1766.8,1766.5,3.96263]
[1743950885401,4.79348,1766.7,1766.6,5.953]
[1743950885608,0.8313,1766.4,1766.2,0.5]
[1743950885768,0.8313,1766.4,1766.3,5.953]
[1743950886173,0.8313,1766.4,1766.3,9.91608]
[1743950887117,0.8313,1766.4,1766.3,5.953]
[1743950887419,0.8313,1766.4,1766.3,9.91608]
[1743950889323,0.8313,1766.4,1766.3,5.953]
[1743950889820,0.8313,1766.4,1766.3,9.91608]
[1743950890022,0.8313,1766.4,1766.2,0.5]
[1743950890175,0.8313,1766.4,1766.3,5.953]
[1743950890377,0.8313,1766.4,1766.3,9.91608]
[1743950892494,0.8149,1766.8,1766.3,5.953]
[1743950892824,0.8149,1766.8,1766.6,3.96233]
[1743950893128,0.8149,1766.8,1766.7,5.953]
[1743950893576,4.77695,1766.8,1766.7,5.952]
[1743950893777,5.655827,1766.8,1766.7,5.952]
[1743950893981,10.01988068,1766.8,1766.7,5.952]
[1743950895985,9.14100368,1766.8,1766.7,5.952]
[1743950896642,12.14100368,1766.8,1766.7,5.952]
[1743950898852,3.96262,1766.6,1766.2,3.96316]
[1743950899061,0.8297,1766.5,1766.3,5.951]
[1743950899215,0.8297,1766.5,1766.3,9.914]
[1743950900054,0.8297,1766.5,1766.3,9.91393]
[1743950900359,0.8297,1766.5,1766.3,9.91404]
[1743950900663,0.8297,1766.3,1766.0,3.96364]
[1743950900848,0.8297,1766.3,1766.1,9.91442]
[1743950901363,0.8297,1766.3,1766.1,13.87784]
[1743950901858,0.8297,1766.3,1766.1,9.91442]
[1743950902212,0.8297,1766.3,1766.1,13.87786]
[1743950903038,0.8297,1766.5,1766.3,3.96304]
[1743950903445,0.8297,1766.5,1766.3,3.96293]
[1743950903642,0.8297,1766.5,1766.4,3.96286]
[1743950903940,0.8297,1766.5,1766.3,4.36488427]
[1743950904142,0.8297,1766.5,1766.3,4.36494427]
[1743950904645,0.8297,1766.5,1766.3,0.40195427]
[1743950904848,0.8297,1766.5,1766.3,4.36503427]
[1743950905218,0.8297,1766.5,1766.4,3.96286]
[1743950905469,0.8297,1766.5,1766.3,4.36503427]
[1743950905674,0.8297,1766.5,1766.3,0.40195427]
[1743950905942,3.93870205,1766.4,1766.1,9.91438]
[1743950906143,0.8297,1766.5,1766.2,3.96322]
[1743950906341,0.8297,1766.5,1766.2,7.92644]
[1743950906579,0.8297,1766.5,1766.3,3.96294]
[1743950906744,0.8297,1766.5,1766.3,7.92592]
[1743950907073,4.79236,1766.5,1766.4,5.95]
[1743950907276,0.8297,1766.5,1766.4,5.95]
[1743950907587,4.76840205,1766.8,1766.5,3.96258]
[1743950907741,8.73037205,1766.8,1766.4,9.91286]
[1743950908080,8.73037205,1766.8,1766.4,13.87557]
[1743950908374,4.76840205,1766.8,1766.5,3.96262]
[1743950908686,4.79196,1766.7,1766.3,7.92603]
[1743950908855,3.93870205,1766.6,1766.4,5.95]
[1743950910490,7.90112205,1766.6,1766.4,5.95]
[1743950911265,3.93870205,1766.6,1766.4,5.95]
[1743950912800,4.84037,1766.9,1766.4,10.67735]
[1743950913008,8.80229,1766.9,1766.5,3.96262]
[1743950913476,3.93870205,1766.6,1766.4,5.95]
[1743950915094,3.93870205,1766.6,1766.4,9.91285]
[1743950915297,0.8285,1766.7,1766.4,9.91285]
[1743950916502,7.90120205,1766.6,1766.4,5.95]
[1743950917492,3.93870205,1766.6,1766.4,5.95]
[1743950918107,7.90125205,1766.6,1766.4,5.95]
[1743950919239,3.96263,1766.5,1766.4,5.95]
[1743950919372,4.77553,1766.5,1766.4,5.95]
[1743950920910,3.96286,1766.4,1766.1,40.746]
[1743950921113,3.96286,1766.4,1766.2,5.948]
[1743950921816,4.77555,1766.5,1766.2,5.948]
[1743950922316,0.8129,1766.5,1766.2,5.948]
[1743950922473,3.96246,1766.6,1766.2,13.87444]
[1743950922812,4.37716957,1766.6,1766.2,10.66141]
[1743950923516,0.05,1766.9,1766.4,4.71306]
[1743950923818,0.05,1766.9,1766.8,4.71216]
[1743950924024,0.05,1766.9,1766.8,10.71574013]
[1743950924378,0.05,1766.9,1766.8,14.65444218]
[1743950924700,0.05,1766.9,1766.8,10.65916]
[1743950925093,0.05,1766.9,1766.8,4.71216]
[1743950925282,0.05,1766.9,1766.8,10.65916]
[1743950927276,0.05,1766.9,1766.8,6.6972]
[1743950927477,0.05,1766.9,1766.8,6.6962]
[1743950928114,0.05,1766.9,1766.8,10.65816]
[1743950928325,0.05,1766.9,1766.8,5.946]
[1743950929922,4.01187,1766.9,1766.5,0.7502]
[1743950930121,4.82297,1766.9,1766.5,0.7502]
[1743950930284,4.82297,1766.9,1766.6,5.945]
[1743950931481,8.78491,1766.9,1766.6,5.945]
[1743950931814,4.82297,1766.9,1766.6,5.945]
[1743950933017,0.05,1766.9,1766.7,3.96217]
[1743950934018,0.05,1766.9,1766.6,9.90728]
[1743950934724,7.97366,1766.9,1766.6,5.945]
[1743950935222,4.01174,1766.9,1766.6,5.945]
[1743950935590,0.05,1766.9,1766.6,9.9074]
[1743950936027,4.01174,1766.9,1766.6,9.9074]
[1743950936229,4.01174,1766.9,1766.6,5.945]
[1743950937090,0.05,1766.9,1766.6,9.90737]
[1743950937628,0.05,1766.9,1766.7,3.96208]
[1743950937829,0.05,1766.9,1766.6,9.90727]
[1743950938897,4.01176,1766.9,1766.6,5.945]
[1743950939424,7.90068205,1766.8,1766.7,5.943]
[1743950939610,4.69440205,1766.8,1766.7,5.943]
[1743950940745,3.93870205,1766.8,1766.7,5.943]
[1743950941958,0.8057,1766.9,1766.7,5.943]
[1743950942259,4.76745,1766.9,1766.7,5.943]
[1743950943122,0.8057,1766.9,1766.7,5.943]
[1743950943827,3.96241,1766.6,1766.5,40.736]
[1743950944027,7.90111205,1766.6,1766.5,46.678]
[1743950944430,8.65461205,1766.6,1766.5,46.678]
[1743950945235,0.05,1766.9,1766.6,3.96226]
[1743950945421,0.05,1766.9,1766.6,4.01884833]
[1743950945620,0.05,1766.9,1766.7,4.36403483]
[1743950945848,0.05,1766.9,1766.7,0.40188483]
[1743950946859,3.96225,1766.7,1766.5,40.736]
[1743950947018,7.90111205,1766.6,1766.5,40.736]
[1743950947215,3.93870205,1766.6,1766.5,46.678]
[1743950947454,7.90068205,1766.8,1766.5,46.678]
[1743950947657,3.96234,1766.7,1766.6,5.942]
[1743950947820,8.65454205,1766.7,1766.6,5.942]
[1743950948023,4.69220205,1766.7,1766.6,5.942]
[1743950948455,8.65438205,1766.7,1766.6,5.942]
[1743950949157,3.93870205,1766.7,1766.6,5.942]
[1743950950735,8.70394205,1766.9,1766.6,5.942]
[1743950951261,3.96198,1766.8,1766.6,5.942]
[1743950951971,7.92412,1766.8,1766.6,5.942]
[1743950952171,7.90088205,1766.7,1766.6,5.942]
[1743950952470,8.67848205,1766.7,1766.6,5.942]
[1743950952675,9.94252826,1766.7,1766.6,5.942]
[1743950953468,4.71630205,1766.7,1766.6,5.942]
[1743950953641,8.67848205,1766.7,1766.6,5.942]
[1743950955674,4.71630205,1766.7,1766.6,5.942]
[1743950956045,8.67848205,1766.7,1766.6,5.942]
[1743950960478,4.71630205,1766.7,1766.6,5.942]
[1743950960657,8.67848205,1766.7,1766.6,5.942]
[1743950961481,8.67848205,1766.7,1766.2,4.7811]
[1743950961681,3.93870205,1766.5,1766.3,5.94]
[1743950962148,7.90149205,1766.5,1766.3,5.94]
[1743950962346,3.93870205,1766.5,1766.3,5.94]
[1743950965187,3.93870205,1766.5,1766.3,9.90287]
[1743950965392,5.13046455,1766.7,1766.4,3.96286]
[1743950965681,9.09265455,1766.7,1766.4,3.96286]
[1743950965884,9.09265455,1766.7,1766.3,10.72987]
[1743950966786,13.05500455,1766.7,1766.3,10.72987]
[1743950966956,13.05499455,1766.7,1766.3,10.72987]
[1743950967352,3.93870205,1766.5,1766.3,10.72987]
[1743950971195,3.93870205,1766.5,1766.3,9.90287]
[1743950973196,3.93870205,1766.5,1766.3,5.94]
[1743950975489,7.90145205,1766.5,1766.3,5.94]
[1743950976076,11.86429205,1766.5,1766.3,5.94]
[1743950976454,0.7842,1766.4,1766.3,5.94]
[1743950977079,0.7842,1766.4,1766.3,5.937]
[1743950977281,3.96317,1766.3,1766.1,40.741]
[1743950977458,7.90201205,1766.2,1766.1,40.741]
[1743950977795,3.93870205,1766.2,1766.1,46.678]
[1743950978166,7.90201205,1766.2,1766.1,40.741]
[1743950978371,7.90201205,1766.2,1766.1,46.678]
[1743950979097,3.93870205,1766.2,1766.1,46.678]
[1743950979400,3.93870205,1766.4,1766.1,55.4081]
[1743950979701,3.93870205,1766.4,1766.1,55.40794]
[1743950980004,3.93870205,1766.4,1766.2,3.96324]
[1743950980301,3.93870205,1766.5,1766.3,3.96308]
[1743950980499,3.93870205,1766.5,1766.3,3.963]
[1743950981391,3.93870205,1766.5,1766.3,7.92595]
[1743950981605,3.93870205,1766.5,1766.3,3.96295]
[1743950982599,3.93870205,1766.5,1766.2,3.9633]
[1743950983601,0.7842,1766.7,1766.4,3.96286]
[1743950983809,8.68488205,1766.8,1766.5,5.936]
[1743950984868,3.93870205,1766.8,1766.6,3.96241]
[1743950986402,3.93870205,1766.8,1766.6,3.96228]
[1743950986705,0.05,1766.9,1766.8,4.75266]
[1743950987612,0.05,1766.9,1766.8,4.80923608]
[1743950987819,0.05,1766.9,1766.8,4.75266]
[1743950988616,0.05,1766.9,1766.8,5.166785]
[1743950989390,0.05,1766.9,1766.8,5.22336392]
[1743950989686,0.05,1766.9,1766.8,5.166785]
[1743950990422,1e-05,1766.9,1766.8,5.166785]
[1743950990782,7.0095,1767.9,1767.8,3.95972]
[1743950990783,0.05,1767.9,1767.8,3.95972]
[1743950990982,0.05,1767.9,1767.8,9.89272]
[1743950991197,0.05,1767.9,1767.8,10.73567908]
[1743950991607,0.05,1767.9,1767.8,10.67912]
[1743950992114,0.05,1767.9,1767.8,10.73567494]
[1743950992313,0.05,1767.9,1767.8,10.67912]
[1743950992782,0.05,1767.9,1767.8,10.73566967]
[1743950993919,1e-05,1768.0,1767.9,4.74589]
[1743950994123,1e-05,1768.0,1767.9,5.29589]
[1743950994483,1e-05,1768.0,1767.9,10.67589]
[1743950995645,1e-05,1768.0,1767.9,10.73244027]
[1743950995924,7.84691205,1768.5,1767.9,10.73244027]
[1743950996130,3.88871205,1768.5,1768.0,3.95918]
[1743950996625,3.88871205,1768.5,1767.9,10.6758]
[1743950996786,3.88871205,1768.5,1768.0,3.95925]
[1743950997528,4.76686,1768.6,1768.0,3.95925]
[1743950997826,0.8088,1768.6,1768.1,0.395925]
[1743950998430,0.005,1768.6,1768.3,0.7896]
[1743950998725,0.005,1768.6,1768.4,5.928]
[1743950999524,7.90175205,1768.6,1768.4,5.928]
[1743950999830,4.71195,1768.5,1768.4,5.928]
[1743951000125,0.8038,1768.5,1768.4,5.928]
[1743951000423,0.005,1768.6,1768.4,5.928]
[1743951001011,0.005,1768.6,1768.4,5.98454519]
[1743951001327,0.005,1768.6,1768.4,10.67586]
[1743951001499,0.005,1768.6,1768.4,10.73239761]
[1743951001698,0.005,1768.6,1768.4,10.67586]
[1743951001953,0.005,1768.6,1768.4,6.7176]
[1743951002241,0.005,1768.6,1768.5,3.95815]
[1743951003155,0.005,1768.6,1768.5,5.926]
[1743951003644,0.005,1768.6,1768.5,10.67375]
[1743951004237,0.005,1768.6,1768.5,15.59254118]
[1743951004451,0.005,1768.6,1768.5,18.59254118]
[1743951004952,0.005,1768.6,1768.5,15.04154118]
[1743951005156,0.005,1768.6,1768.5,0.7896]
[1743951005317,0.005,1768.6,1768.5,5.925]
[1743951005956,0.005,1768.6,1768.5,5.924]
[1743951007762,0.005,1768.6,1768.1,3.95891]
[1743951007763,0.005,1768.6,1768.1,0.7896]
[1743951008060,3.95825,1768.5,1768.2,46.623]
[1743951008227,3.94370205,1768.6,1768.2,46.623]
[1743951008427,0.005,1768.6,1768.4,0.7896]
[1743951008652,0.005,1768.6,1768.2,46.623]
[1743951008958,0.005,1768.6,1768.3,0.05654073]
[1743951009838,0.005,1768.6,1768.2,46.623]
[1743951009839,3.94370205,1768.6,1768.2,46.623]
[1743951010164,0.005,1768.6,1768.3,0.05654266]
[1743951010695,0.005,1768.6,1768.3,4.01503266]
[1743951010843,0.005,1768.6,1768.2,54.54044]
[1743951011044,0.005,1768.6,1768.2,50.58165]
[1743951011253,0.005,1768.6,1768.3,0.05653701]
[1743951011941,3.95846,1768.4,1768.2,40.699]
[1743951012146,4.74886,1768.4,1768.3,5.923]
[1743951012883,8.70742,1768.4,1768.3,5.923]
[1743951013547,12.97203221,1768.4,1768.3,5.923]
[1743951013939,6.9586,1768.3,1768.2,40.699]
[1743951014138,10.89730205,1768.3,1768.2,46.622]
[1743951015232,6.93870205,1768.3,1768.2,46.622]
[1743951015438,0.7904,1768.4,1768.2,46.622]
[1743951016993,8.70560205,1768.3,1768.2,46.621]
[1743951017290,4.7669,1768.3,1768.2,46.621]
[1743951017782,4.7669,1768.3,1768.2,5.922]
[1743951018398,7.7669,1768.3,1768.2,5.922]
[1743951018601,3.95949,1767.9,1767.7,5.922]
[1743951018893,3.0,1768.2,1767.3,1.61148256]
[1743951018894,3.9605,1767.5,1767.3,1.61148256]
[1743951019070,3.96062,1767.4,1767.3,1.61148256]
[1743951019484,0.8083,1767.4,1767.1,40.699]
[1743951019654,0.8083,1767.4,1767.3,5.923]
[1743951019854,4.76892,1767.4,1767.3,5.923]
[1743951020703,0.8083,1767.4,1767.3,5.923]
[1743951021056,4.35889414,1767.6,1767.3,5.923]
[1743951021057,4.76847,1767.6,1767.3,5.923]
[1743951021252,4.76847,1767.6,1767.3,6.52095854]
[1743951021994,3.96051,1767.5,1767.3,6.52095854]
[1743951022501,3.96062,1767.4,1767.3,5.923]
[1743951022658,7.76849,1767.6,1767.3,5.923]
[1743951023298,3.96056,1767.5,1767.3,5.923]
[1743951023604,7.92113,1767.5,1767.3,5.923]
[1743951023903,3.96062,1767.4,1767.3,5.923]
[1743951024111,3.96056,1767.5,1767.3,5.923]
[1743951024566,7.92115,1767.5,1767.3,5.923]
[1743951024768,3.96062,1767.4,1767.3,5.923]
[1743951025083,3.96062,1767.4,1767.3,5.922]
[1743951025663,3.96056,1767.5,1767.3,5.922]
[1743951026079,5.1982947,1767.6,1767.3,5.922]
[1743951026402,0.8083,1767.8,1767.3,7.3045]
[1743951026605,9.12647414,1768.0,1767.4,4.01711235]
[1743951026899,13.08593414,1768.0,1767.4,4.01711235]
[1743951027265,3.95953,1767.9,1767.3,11.26518]
[1743951027465,3.95953,1767.9,1767.4,0.05657021]
[1743951027695,3.95973,1767.8,1767.4,0.71981254]
[1743951027878,3.95953,1767.9,1767.4,0.71981254]
[1743951028289,9.12646414,1768.0,1767.4,4.68042254]
[1743951029102,9.12646414,1768.0,1767.5,40.713]
[1743951029465,3.95967,1767.9,1767.5,40.713]
[1743951029692,3.95972,1767.8,1767.5,41.3052]
[1743951029907,9.12646414,1768.0,1767.5,41.3052]
[1743951030091,3.95951,1767.9,1767.5,41.3052]
[1743951030395,3.95972,1767.8,1767.5,41.3052]
[1743951031121,5.16719414,1768.0,1767.5,45.26556]
[1743951031404,0.8083,1768.0,1767.6,0.71981254]
[1743951031593,0.27170204,1767.9,1767.7,5.922]
[1743951031968,0.27170204,1767.9,1767.8,0.05656899]
[1743951032164,4.76195,1768.5,1767.8,4.01628899]
[1743951032416,4.76195,1768.5,1767.9,3.95944]
[1743951032713,8.32183414,1768.6,1768.1,4.79007]
[1743951032714,0.27653421,1768.4,1768.1,4.79007]
[1743951032914,0.27653421,1768.4,1768.2,5.97854424]
[1743951033083,3.96312,1768.6,1768.2,5.922]
[1743951033279,0.27693883,1768.3,1768.2,5.922]
[1743951033583,0.27720531,1768.3,1768.2,6.59732]
[1743951033797,0.27720531,1768.3,1768.2,5.922]
[1743951033977,9.00801531,1768.3,1768.2,5.921]
[1743951034373,5.04923531,1768.3,1768.2,5.921]
[1743951035607,8.04923531,1768.3,1768.2,5.921]
[1743951035913,8.04923531,1768.3,1767.6,0.7822]
[1743951035914,7.91873,1768.0,1767.6,0.83875858]
[1743951036078,7.91873,1768.0,1767.7,5.92]
[1743951036409,0.27517735,1767.9,1767.7,5.92]
[1743951037401,3.95927,1768.0,1767.7,5.92]
[1743951037601,4.35889414,1768.1,1767.7,5.92]
[1743951037803,4.35889414,1768.1,1767.7,5.97656905]
[1743951038009,0.2756876,1768.0,1767.7,6.65244596]
[1743951038211,0.2756876,1768.0,1767.8,3.95967]
[1743951038370,0.2756876,1768.0,1767.7,10.55569691]
[1743951038705,0.27517735,1767.9,1767.8,0.05656075]
[1743951039069,9.13098414,1768.3,1767.8,0.05656075]
[1743951039268,0.27532348,1767.9,1767.8,0.69269638]
[1743951039487,9.13098414,1768.3,1767.8,0.69269638]
[1743951039687,0.27532348,1767.9,1767.8,0.69269638]
[1743951039888,5.17229414,1768.3,1767.8,4.65239638]
[1743951040088,0.27532348,1767.9,1767.8,0.69269638]
[1743951040405,5.17499414,1768.5,1767.9,0.7822]
[1743951040741,4.35889414,1768.5,1768.1,3.95902]
[1743951040933,4.35889414,1768.5,1768.2,6.315902]
[1743951041303,7.38904684,1768.6,1768.2,11.056812]